bitfinex/quotes_SOLUSD_20260203
["timestamp","ask_amount","ask_price","bid_price","bid_amount"]
[1770102133277,20.18515578,104.06,104.02,4.00450382]
[1770102134290,44.20975697,104.06,104.02,4.00450382]
[1770102137406,11.33305036,104.05,104.02,4.00450382]
[1770102137619,20.2384357,104.05,104.01,4.00450382]
[1770102138109,10.63650723,104.04,104.0,4.00450382]
[1770102139496,9.61261174,104.03,104.0,4.00450382]
[1770102141931,1.77397065,104.01,103.97,4.14494555]
[1770102142119,10.67935599,104.01,103.97,4.14494555]
[1770102142619,8.89431184,104.0,103.97,4.14494555]
[1770102142819,1.77397065,104.0,103.97,4.14494555]
[1770102142996,10.67658816,104.02,103.98,4.14494555]
[1770102144325,9.61446014,104.01,103.98,4.14494555]
[1770102147132,20.32348948,104.01,103.97,4.14494555]
[1770102147423,8.89431184,103.99,103.96,4.14494555]
[1770102148421,20.33372428,103.99,103.96,4.14494555]
[1770102148919,11.43941244,103.99,103.96,4.14494555]
[1770102149119,20.33372428,103.99,103.96,4.14494555]
[1770102149320,10.72468921,103.98,103.95,4.14494555]
[1770102149902,44.38990698,103.99,103.95,4.14494555]
[1770102150722,18.51109425,103.99,103.96,4.14494555]
[1770102150902,9.61678241,103.99,103.96,4.14494555]
[1770102151215,20.35671548,103.99,103.96,4.14494555]
[1770102152004,20.35671548,103.99,103.95,4.14494555]
[1770102152708,8.89431184,103.98,103.95,4.14494555]
[1770102153123,20.35671548,103.99,103.95,4.14494555]
[1770102153322,20.35671548,103.99,103.96,4.14494555]
[1770102153519,9.61678241,103.99,103.96,4.14494555]
[1770102154023,20.37890908,103.99,103.95,4.14494555]
[1770102154418,44.41968223,103.99,103.95,4.14494555]
[1770102155021,20.37890908,103.99,103.96,4.14494555]
[1770102155321,9.61563701,104.0,103.96,4.14494555]
[1770102155923,18.50877198,104.01,103.98,4.14494555]
[1770102156599,9.61446014,104.01,103.98,4.14494555]
[1770102157227,18.50877198,104.01,103.98,4.14494555]
[1770102158428,10.79037047,104.0,103.97,4.14494555]
[1770102159025,1.89605863,104.0,103.97,4.14494555]
[1770102160312,10.80423988,103.99,103.95,4.14494555]
[1770102160630,8.89431184,103.98,103.95,4.14494555]
[1770102160932,10.80423988,103.99,103.95,4.14494555]
[1770102161307,10.81099639,103.98,103.95,4.14494555]
[1770102161508,8.89431184,103.97,103.94,4.14494555]
[1770102161921,10.81767934,103.97,103.94,4.14494555]
[1770102163230,9.61908426,103.96,103.94,4.14494555]
[1770102164911,18.5133961,103.96,103.94,4.14494555]
[1770102165234,9.61908426,103.96,103.94,4.14494555]
[1770102165533,10.81767934,103.97,103.94,13.76582949]
[1770102165534,9.61834886,103.97,103.94,13.76582949]
[1770102165835,9.61834886,103.97,103.94,4.14494555]
[1770102166728,13.17839845,103.97,103.94,4.14494555]
[1770102169726,9.61723408,103.98,103.95,4.14494555]
[1770102169924,13.17728367,103.98,103.95,4.14494555]
[1770102170129,44.17209264,103.99,103.95,4.14494555]
[1770102171329,44.17209264,103.99,103.96,4.29663988]
[1770102171528,7.90677748,103.98,103.93,9.62135101]
[1770102171836,3.56004959,103.97,103.93,9.62135101]
[1770102172941,7.90677748,103.98,103.93,9.62135101]
[1770102173540,9.61815908,103.97,103.94,4.29663988]
[1770102174231,17.52493656,103.97,103.94,4.29663988]
[1770102174438,7.90677748,103.96,103.93,4.29663988]
[1770102175540,17.52616266,103.96,103.93,4.29663988]
[1770102178838,13.17943477,103.96,103.93,4.29663988]
[1770102179042,4.34672789,103.96,103.93,13.91834245]
[1770102179246,7.90677748,103.96,103.93,4.29663988]
[1770102179645,4.34672789,103.96,103.93,4.29663988]
[1770102180752,16.56358514,103.97,103.94,4.29663988]
[1770102181050,16.56275147,103.98,103.95,4.29663988]
[1770102182947,16.56275147,103.98,103.95,13.91659279]
[1770102182948,4.34672789,103.98,103.95,13.91659279]
[1770102183267,8.65525046,103.99,103.96,4.29663988]
[1770102183452,4.34672789,103.99,103.96,4.29663988]
[1770102183828,13.00142192,103.99,103.96,4.29663988]
[1770102184431,8.65469403,103.99,103.96,4.29663988]
[1770102184630,8.65469403,103.99,103.97,4.29663988]
[1770102185046,13.00142192,103.99,103.96,13.91567924]
[1770102185251,4.34672789,103.98,103.95,13.9161291]
[1770102185954,16.56147151,103.99,103.96,4.29663988]
[1770102186147,13.00142192,103.99,103.96,4.29663988]
[1770102186453,13.00142192,103.99,103.96,13.91558673]
[1770102186637,13.00142192,103.99,103.96,4.29663988]
[1770102188151,7.90677748,104.0,103.96,9.61868868]
[1770102188342,7.90677748,104.0,103.97,4.29663988]
[1770102188542,4.34672789,104.0,103.97,4.29663988]
[1770102188849,4.34672789,103.99,103.96,13.91559043]
[1770102191854,16.56088808,104.0,103.97,4.29663988]
[1770102193263,4.34672789,103.98,103.95,13.91625154]
[1770102193436,4.34672789,103.97,103.94,4.29663988]
[1770102193641,7.90677748,103.97,103.94,4.29663988]
[1770102193946,4.34672789,103.97,103.94,4.29663988]
[1770102195058,7.90677748,103.97,103.94,4.29663988]
[1770102195233,13.00343535,103.97,103.94,4.29663988]
[1770102197957,13.00223856,103.98,103.95,4.29663988]
[1770102198140,16.56228815,103.98,103.95,4.29663988]
[1770102199147,8.65551067,103.98,103.96,4.29663988]
[1770102199857,13.00223856,103.98,103.95,4.29663988]
[1770102200159,8.65551067,103.98,103.95,4.29663988]
[1770102200862,12.75460477,103.98,103.95,4.29663988]
[1770102201260,8.65551067,103.98,103.95,4.29663988]
[1770102201448,37.95274713,103.99,103.96,4.22157794]
[1770102201764,4.0990941,103.98,103.95,13.841389]
[1770102202057,4.0990941,103.98,103.95,4.22157794]
[1770102204369,12.75509052,103.98,103.95,4.22157794]
[1770102206560,8.65599642,103.98,103.95,4.22157794]
[1770102207268,12.75509052,103.98,103.95,4.22157794]
[1770102210762,12.75423928,103.99,103.96,4.22157794]
[1770102211073,4.0990941,103.98,103.95,4.22157794]
[1770102212355,12.75504702,103.98,103.95,4.22157794]
[1770102213265,12.75422195,103.99,103.96,4.22157794]
[1770102215078,12.75339466,104.0,103.97,4.22157794]
[1770102222884,8.65551067,103.98,103.96,4.22157794]
[1770102225175,12.75460477,103.98,103.96,4.22157794]
[1770102227395,12.75460477,103.98,103.95,4.22157794]
[1770102228697,16.31364022,103.99,103.95,4.22157794]
[1770102228992,12.75425283,103.99,103.96,4.22157794]
[1770102231095,8.65515873,103.99,103.96,4.22157794]
[1770102231391,12.70488715,104.0,103.97,4.1378182]
[1770102234496,7.60977667,104.04,104.0,4.1378182]
[1770102234699,12.70173985,104.03,104.0,4.1378182]
[1770102236290,4.05038928,104.02,103.99,4.1378182]
[1770102239507,4.05038928,104.02,104.0,4.1378182]
[1770102239711,34.33011627,104.03,104.0,4.1378182]
[1770102241009,42.97983028,104.05,104.01,4.1378182]
[1770102241208,12.70044289,104.05,104.02,4.1378182]
[1770102242308,4.05038928,104.04,104.01,4.1378182]
[1770102242696,7.60977667,104.04,104.01,4.1378182]
[1770102243409,4.05038928,104.04,104.01,4.1378182]
[1770102244508,4.05038928,104.03,104.01,4.1378182]
[1770102244712,4.05038928,104.03,104.0,4.1378182]
[1770102244911,12.70168931,104.04,104.0,4.1378182]
[1770102245113,12.70168931,104.04,104.01,4.1378182]
[1770102245290,4.05038928,104.04,104.01,4.1378182]
[1770102245492,8.65051903,104.04,104.01,4.1378182]
[1770102245716,8.65051903,104.04,104.02,4.1378182]
[1770102246213,12.70090831,104.04,104.02,4.1378182]
[1770102246391,4.05038928,104.03,104.01,4.1378182]
[1770102246592,12.70176477,104.03,104.01,4.1378182]
[1770102246816,8.65137549,104.03,104.01,4.1378182]
[1770102247804,16.26071828,104.04,104.01,4.1378182]
[1770102255324,12.70133089,104.04,104.01,4.1378182]
[1770102256024,4.05038928,104.03,104.01,4.1378182]
[1770102256518,16.26071828,104.04,104.01,4.1378182]
[1770102256710,12.210329,104.04,104.01,4.1378182]
[1770102259333,37.88701585,104.04,104.01,4.1378182]
[1770102259505,7.60977667,104.03,103.98,13.17614698]
[1770102259705,7.60977667,104.02,103.98,9.61675959]
[1770102259912,16.26222276,104.02,103.98,9.61675959]
[1770102260105,16.26222276,104.02,103.97,13.17714449]
[1770102260518,8.65244609,104.02,103.98,3.55938739]
[1770102261704,8.65244609,104.02,103.99,4.34637151]
[1770102262425,8.65051903,104.04,104.01,4.34637151]
[1770102269629,16.39428624,104.04,104.01,4.34637151]
[1770102270428,8.65051903,104.04,104.01,4.34637151]
[1770102271436,12.8390562,104.04,104.01,4.34637151]
[1770102274249,4.18853717,104.03,104.01,4.34637151]
[1770102274752,38.02058381,104.04,104.01,4.34637151]
[1770102275151,38.02058381,104.04,103.99,4.34637151]
[1770102275152,7.74376721,104.02,103.99,4.34637151]
[1770102276257,16.39670778,104.02,103.99,4.34637151]
[1770102278054,12.84147774,104.02,103.99,4.34637151]
[1770102278353,8.65294057,104.02,103.99,4.34637151]
[1770102279057,12.84147774,104.02,103.99,4.34637151]
[1770102280158,4.18853717,104.0,103.94,50.75061306]
[1770102280453,7.74376721,103.99,103.96,4.34637151]
[1770102280837,4.18853717,103.97,103.94,4.34637151]
[1770102281643,12.84569602,103.97,103.94,4.34637151]
[1770102283455,16.40092606,103.97,103.94,4.34637151]
[1770102283949,12.84569602,103.97,103.94,4.34637151]
[1770102288371,16.40092606,103.97,103.94,4.34637151]
[1770102289861,38.04178399,103.97,103.94,4.34637151]
[1770102292646,8.65715885,103.97,103.94,4.34637151]
[1770102293068,12.7902958,103.97,103.94,4.34637151]
[1770102293369,16.34418644,103.98,103.95,4.09166642]
[1770102298565,12.7889564,103.98,103.95,4.09166642]
[1770102298766,38.68363784,104.0,103.96,4.09166642]
[1770102300169,4.13313695,103.99,103.96,4.09166642]
[1770102300363,7.68836699,103.98,103.95,4.09166642]
[1770102300562,4.13313695,103.98,103.95,4.09166642]
[1770102300873,7.68836699,103.98,103.95,4.09166642]
[1770102302169,34.60896179,104.02,103.97,3.55523004]
[1770102302170,4.13313695,104.01,103.97,3.55523004]
[1770102302370,4.13313695,104.01,103.98,4.09166642]
[1770102303476,12.78662255,104.01,103.98,4.09166642]
[1770102310572,16.34185259,104.01,103.98,4.09166642]
[1770102310772,4.13313695,104.0,103.98,4.09166642]
[1770102313385,3.55523004,104.02,103.98,4.09166642]
[1770102313573,12.78615108,104.01,103.98,4.09166642]
[1770102314264,34.41648139,104.02,103.99,4.09166642]
[1770102314466,37.97171143,104.02,103.99,4.09166642]
[1770102316084,4.13313695,104.01,103.98,4.09166642]
[1770102317290,37.97171143,104.02,103.98,4.09166642]
[1770102317875,37.97171143,104.02,103.99,4.09166642]
[1770102318076,34.41648139,104.02,103.99,4.09166642]
[1770102319292,7.68836699,104.05,104.01,4.09166642]
[1770102319491,7.68836699,104.05,104.02,4.09166642]
[1770102319492,4.13313695,104.04,104.02,4.09166642]
[1770102319876,25.75756087,104.05,104.02,4.09166642]
[1770102320075,4.13313695,104.04,104.02,4.09166642]
[1770102320374,4.13313695,104.04,104.01,4.30098289]
[1770102320771,25.71140089,104.05,104.02,4.30098289]
[1770102322300,34.36108854,104.05,104.02,4.30098289]
[1770102325196,8.64968765,104.05,104.02,4.30098289]
[1770102325610,12.73615257,104.06,104.03,4.30098289]
[1770102325777,12.73417143,104.08,104.04,3.55523004]
[1770102325978,8.64719446,104.08,104.05,4.30098289]
[1770102326192,8.84654183,104.09,104.07,4.30098289]
[1770102326682,0.2,104.09,104.08,4.30098289]
[1770102326896,6.50409901,104.1,104.08,4.30098289]
[1770102327096,26.9,104.11,104.09,4.30098289]
[1770102327311,0.2,104.11,104.09,4.30098289]
[1770102327604,8.84475693,104.11,104.09,4.30098289]
[1770102327809,0.2,104.11,104.09,4.30098289]
[1770102328793,0.2,104.11,104.08,4.30098289]
[1770102328794,12.93223846,104.11,104.08,4.30098289]
[1770102329190,8.84526149,104.11,104.08,7.85213469]
[1770102329392,12.93223846,104.11,104.08,4.30098289]
[1770102333008,0.2,104.11,104.1,4.30098289]
[1770102333205,0.2,104.13,104.11,4.30098289]
[1770102333412,0.2,104.13,104.12,4.30098289]
[1770102337584,8.84168621,104.15,104.13,4.30098289]
[1770102339106,12.92866318,104.15,104.12,4.30098289]
[1770102340008,4.08697697,104.13,104.09,7.85213469]
[1770102340311,7.63812877,104.12,104.09,4.30098289]
[1770102340511,4.08697697,104.09,104.05,17.46244583]
[1770102340697,7.63812877,104.08,104.03,17.46433952]
[1770102341009,4.08697697,104.07,104.04,4.30098289]
[1770102341390,8.64744516,104.08,104.05,4.30098289]
[1770102341710,8.64657978,104.09,104.06,4.30098289]
[1770102341891,12.73355675,104.09,104.06,4.30098289]
[1770102342204,4.08697697,104.08,104.05,4.30098289]
[1770102343794,4.08697697,104.08,104.05,7.85213469]
[1770102343995,4.08697697,104.11,104.07,7.85213469]
[1770102345012,12.73180177,104.11,104.07,7.85213469]
[1770102345213,4.08697697,104.1,104.06,17.46114455]
[1770102345511,4.08697697,104.1,104.06,13.90999275]
[1770102345691,4.08697697,104.1,104.06,4.30098289]
[1770102345892,4.08697697,104.09,104.06,4.30098289]
[1770102346602,4.08697697,104.09,104.06,17.46177301]
[1770102347001,12.73180177,104.11,104.08,4.30098289]
[1770102347501,4.08697697,104.1,104.07,7.85213469]
[1770102347700,4.08697697,104.1,104.06,17.46151337]
[1770102348996,4.08697697,104.09,104.05,7.85213469]
[1770102349192,4.08697697,104.08,104.05,4.30098289]
[1770102349514,4.08697697,104.08,104.05,7.85213469]
[1770102349818,4.08697697,104.08,104.05,17.46272324]
[1770102350416,4.08697697,104.08,104.06,3.5511518]
[1770102351493,4.0461072,104.07,104.03,8.02681998]
[1770102352419,4.0461072,104.07,104.04,8.02681998]
[1770102352595,4.0461072,104.07,104.05,3.5511518]
[1770102353718,12.69423271,104.07,104.04,3.5511518]
[1770102356817,12.69423271,104.07,104.04,8.02681998]
[1770102358620,8.64812551,104.07,104.04,3.5511518]
[1770102358827,8.64812551,104.07,104.05,4.47566818]
[1770102359008,35.02137805,104.1,104.06,4.47566818]
[1770102359407,4.38603845,104.09,104.06,4.47566818]
[1770102360019,13.03240217,104.09,104.06,4.47566818]
[1770102360823,8.64636372,104.09,104.06,8.02681998]
[1770102361128,13.03240217,104.09,104.06,8.02681998]
[1770102361522,4.38603845,104.11,104.08,8.02681998]
[1770102361709,13.0311042,104.11,104.08,8.02681998]
[1770102361913,13.03025323,104.12,104.09,8.02681998]
[1770102363007,4.38603845,104.11,104.09,3.5511518]
[1770102363209,4.38603845,104.11,104.06,17.63617148]
[1770102363434,4.38603845,104.1,104.06,17.63617148]
[1770102363929,4.38603845,104.1,104.07,3.5511518]
[1770102364232,13.03184883,104.1,104.07,3.5511518]
[1770102365733,4.38603845,104.09,104.06,8.02681998]
[1770102365915,4.38603845,104.09,104.06,3.5511518]
[1770102366236,13.03290453,104.09,104.06,8.02681998]
[1770102366925,4.38603845,104.08,104.04,8.02681998]
[1770102367109,4.38603845,104.07,104.03,8.02681998]
[1770102368118,4.38603845,104.07,104.04,3.5511518]
[1770102368722,4.38603845,104.06,104.03,8.02681998]
[1770102368924,13.03419863,104.07,104.04,8.02681998]
[1770102369129,13.03419863,104.07,104.04,3.5511518]
[1770102369324,8.64816018,104.07,104.04,3.5511518]
[1770102369519,4.38603845,104.06,104.04,3.5511518]
[1770102371127,4.38603845,104.06,104.04,13.16278541]
[1770102371328,4.38603845,104.07,104.05,3.5511518]
[1770102372211,4.38603845,104.07,104.04,13.16278541]
[1770102372931,4.38603845,104.06,104.04,13.16278541]
[1770102374235,4.38603845,104.06,104.04,3.5511518]
[1770102375031,4.38603845,104.05,104.02,14.08877686]
[1770102375215,4.38603845,104.06,104.03,13.16362352]
[1770102375534,8.64849252,104.07,104.04,8.02681998]
[1770102375535,13.03453097,104.07,104.04,8.02681998]
[1770102378633,8.6476253,104.08,104.05,3.5511518]
[1770102378934,13.03366375,104.08,104.05,8.02681998]
[1770102379134,4.38603845,104.07,104.05,3.5511518]
[1770102379909,4.38603845,104.07,104.05,13.16187792]
[1770102380616,4.38603845,104.07,104.05,3.5511518]
[1770102382447,13.0045424,104.08,104.05,3.5511518]
[1770102382735,4.3569171,104.07,104.04,3.5511518]
[1770102383038,4.3569171,104.07,104.04,13.16268061]
[1770102383234,4.3569171,104.08,104.05,17.562487]
[1770102383536,4.3569171,104.1,104.07,7.95178717]
[1770102383716,4.3569171,104.1,104.08,3.5511518]
[1770102383917,4.3569171,104.11,104.08,7.95178717]
[1770102384641,4.3569171,104.11,104.08,3.5511518]
[1770102385020,34.52642265,104.14,104.1,7.95178717]
[1770102385021,12.99919858,104.14,104.1,7.95178717]
[1770102385221,4.3569171,104.13,104.1,3.5511518]
[1770102386323,4.3569171,104.12,104.08,38.02804743]
[1770102386521,4.3569171,104.12,104.1,3.5511518]
[1770102386819,4.3569171,104.13,104.1,3.5511518]
[1770102387024,4.3569171,104.13,104.11,3.5511518]
[1770102388526,4.3569171,104.13,104.11,3.54794602]
[1770102391042,4.3569171,104.13,104.11,13.15315271]
[1770102391244,4.3569171,104.13,104.11,3.54794602]
[1770102392755,4.3569171,104.13,104.1,14.00636334]
[1770102393049,4.3569171,104.13,104.11,3.54794602]
[1770102394044,4.5569171,104.15,104.12,7.94858139]
[1770102394329,4.3569171,104.17,104.14,3.54794602]
[1770102394540,4.3569171,104.17,104.15,3.54794602]
[1770102395132,4.3569171,104.17,104.14,9.60223487]
[1770102395340,4.3569171,104.17,104.15,3.54794602]
[1770102395727,4.4569171,104.18,104.15,17.54964062]
[1770102396028,4.4569171,104.18,104.16,3.54794602]
[1770102396434,0.1,104.18,104.16,3.54794602]
[1770102397552,10.55344792,104.19,104.17,3.54794602]
[1770102398355,6.19653082,104.19,104.17,7.94858139]
[1770102398647,6.92906747,104.2,104.18,3.54794602]
[1770102399029,2.57215037,104.2,104.19,3.54794602]
[1770102399233,4.4569171,104.21,104.19,3.54794602]
[1770102399743,4.4569171,104.21,104.18,17.5472296]
[1770102401458,4.3569171,104.2,104.17,17.54809617]
[1770102402852,4.3569171,104.19,104.17,3.54794602]
[1770102403152,12.99421595,104.2,104.17,3.54794602]
[1770102403952,4.3569171,104.2,104.17,13.14759784]
[1770102404848,4.3569171,104.2,104.17,17.54823321]
[1770102405042,4.3569171,104.2,104.18,3.54794602]
[1770102405237,4.3569171,104.2,104.17,14.00028719]
[1770102405238,4.4569171,104.22,104.19,7.94858139]
[1770102405439,4.4569171,104.22,104.2,3.54794602]
[1770102407159,4.4569171,104.22,104.21,3.54794602]
[1770102407547,4.4569171,104.22,104.2,3.54794602]
[1770102407850,0.1,104.22,104.2,3.54794602]
[1770102408763,0.1,104.22,104.2,17.54541999]
[1770102415062,0.1,104.22,104.21,3.54794602]
[1770102415373,1e-08,104.24,104.21,3.54794602]
[1770102415546,0.3540984,104.26,104.2,37.13710707]
[1770102415547,0.3540984,104.26,104.24,4.10975461]
[1770102415751,12.957272,104.28,104.25,4.10975461]
[1770102415984,12.957272,104.28,104.25,7.65770063]
[1770102416144,12.957272,104.28,104.25,4.10975461]
[1770102416350,12.957272,104.28,104.25,7.65770063]
[1770102416563,4.32633226,104.27,104.24,3.54794602]
[1770102417062,12.95827099,104.27,104.24,3.54794602]
[1770102417263,4.32633226,104.26,104.24,3.54794602]
[1770102417872,12.95827099,104.27,104.25,3.54794602]
[1770102418566,4.32633226,104.27,104.25,3.54794602]
[1770102419155,4.32633226,104.27,104.26,3.54794602]
[1770102419568,12.95735707,104.28,104.26,3.54794602]
[1770102419877,6.08118647,104.29,104.27,3.54794602]
[1770102420074,6.08118647,104.29,104.28,3.54794602]
[1770102420465,0.1,104.32,104.3,7.65770063]
[1770102420657,4.32633226,104.34,104.31,7.65770063]
[1770102420860,6.0777734,104.36,104.33,3.54794602]
[1770102421076,6.0777734,104.36,104.34,17.24173646]
[1770102421279,6.0777734,104.36,104.34,7.65770063]
[1770102421451,6.0777734,104.36,104.33,7.65770063]
[1770102421769,19.02837403,104.36,104.33,4.10975461]
[1770102422368,4.32633226,104.35,104.29,4.10975461]
[1770102422571,7.87427828,104.34,104.29,7.65770063]
[1770102422760,4.32633226,104.33,104.29,7.65770063]
[1770102423146,12.95311047,104.33,104.29,7.65770063]
[1770102423363,12.95311047,104.33,104.29,17.24615492]
[1770102423746,12.95311047,104.33,104.29,17.14917492]
[1770102423951,4.32633226,104.31,104.27,3.54794602]
[1770102424158,4.32633226,104.3,104.23,26.7273318]
[1770102424361,4.32633226,104.29,104.25,13.14007833]
[1770102424666,4.32633226,104.29,104.25,13.1401616]
[1770102425068,4.32633226,104.28,104.24,9.59301177]
[1770102425371,4.32633226,104.28,104.25,3.54794602]
[1770102425550,12.9569784,104.28,104.25,3.54794602]
[1770102425750,12.9569784,104.28,104.24,3.54794602]
[1770102426380,12.9569784,104.28,104.24,8.84815211]
[1770102427073,4.32633226,104.26,104.23,30.96044892]
[1770102427290,4.32633226,104.26,104.23,43.91835564]
[1770102427462,12.95870434,104.26,104.23,34.32437664]
[1770102428289,12.95870434,104.26,104.23,30.21462203]
[1770102428702,4.32633226,104.26,104.23,30.21462203]
[1770102429386,12.9586407,104.26,104.23,21.36646992]
[1770102429587,4.32633226,104.26,104.23,34.32437664]
[1770102430267,12.95873418,104.26,104.23,21.36646992]
[1770102431891,4.32633226,104.25,104.23,21.36646992]
[1770102432072,12.95873418,104.26,104.23,21.36646992]
[1770102432589,4.32633226,104.26,104.23,30.96049358]
[1770102432979,4.32633226,104.26,104.23,21.36646992]
[1770102434087,4.32633226,104.25,104.23,21.36646992]
[1770102434287,4.32633226,104.23,104.2,13.70640158]
[1770102434495,4.32633226,104.23,104.2,22.55455369]
[1770102434671,4.32633226,104.23,104.2,4.10975461]
[1770102435494,4.32633226,104.23,104.19,22.55551042]
[1770102435676,4.32633226,104.23,104.2,12.95790672]
[1770102436583,4.32633226,104.23,104.2,22.55447673]
[1770102436893,12.96116169,104.23,104.19,22.55545786]
[1770102437184,21.8093138,104.23,104.19,22.55545786]
[1770102439088,4.32633226,104.23,104.2,12.95790672]
[1770102439491,17.48294067,104.23,104.19,22.55545786]
[1770102439670,8.63478856,104.23,104.19,22.55545786]
[1770102440173,12.96112082,104.23,104.19,22.55545786]
[1770102440573,21.80927293,104.23,104.19,22.55545786]
[1770102440993,12.96112082,104.23,104.19,22.55545786]
[1770102441892,21.80927293,104.23,104.19,22.55545786]
[1770102442394,12.96112082,104.23,104.19,22.55545786]
[1770102442796,4.40033324,104.24,104.21,13.14264824]
[1770102443088,4.40033324,104.24,104.2,22.73917714]
[1770102443486,17.48166607,104.25,104.19,13.89192674]
[1770102443487,4.40033324,104.22,104.19,13.89192674]
[1770102445091,4.40033324,104.22,104.19,22.74007885]
[1770102447595,4.40033324,104.23,104.2,13.14264824]
[1770102448192,4.40033324,104.23,104.2,4.29449613]
[1770102449503,4.40033324,104.23,104.2,13.89135008]
[1770102451501,13.03550083,104.23,104.2,4.29449613]
[1770102453807,4.40033324,104.22,104.2,4.29449613]
[1770102454009,4.40033324,104.22,104.19,17.43444986]
[1770102454711,4.40033324,104.22,104.19,13.8922042]
[1770102454910,12.17741325,104.23,104.17,4.29449613]
[1770102454911,7.9425789,104.2,104.17,4.29449613]
[1770102455209,3.54224566,104.19,104.16,4.29449613]
[1770102455385,4.40033324,104.17,104.15,9.60142165]
[1770102455592,4.40033324,104.18,104.15,4.29449613]
[1770102455806,202.29731361,104.23,104.17,17.43630757]
[1770102456102,3.54224566,104.22,104.18,3.54224566]
[1770102456288,3.54224566,104.22,104.17,13.89406191]
[1770102456289,4.40033324,104.21,104.17,17.43630757]
[1770102456911,13.03698385,104.21,104.17,17.43630757]
[1770102458212,13.03619317,104.22,104.19,4.29449613]
[1770102458507,4.40033324,104.21,104.17,17.43630757]
[1770102458711,7.9425789,104.21,104.18,4.29449613]
[1770102459011,4.40033324,104.21,104.18,4.29449613]
[1770102460105,13.0368981,104.21,104.18,4.29449613]
[1770102461087,4.40033324,104.2,104.17,17.43630757]
[1770102461412,4.40033324,104.19,104.16,4.29449613]
[1770102461994,4.40033324,104.19,104.16,13.89489209]
[1770102462611,13.0384458,104.19,104.16,13.89489209]
[1770102462814,13.0384458,104.19,104.16,4.29449613]
[1770102466393,13.03848304,104.19,104.16,4.29449613]
[1770102466912,13.03797603,104.2,104.17,4.29449613]
[1770102467305,13.03718041,104.21,104.18,4.29449613]
[1770102467510,13.03718041,104.21,104.18,7.83674179]
[1770102468931,4.40033324,104.2,104.17,17.43612068]
[1770102470203,4.07833575,104.19,104.16,3.54224566]
[1770102470511,4.07833575,104.17,104.14,4.33824978]
[1770102470716,4.07833575,104.17,104.14,13.94052771]
[1770102471212,7.62058141,104.17,104.14,4.33824978]
[1770102471393,7.74087318,104.17,104.13,13.99340187]
[1770102471815,7.74087318,104.17,104.14,4.3901731]
[1770102472115,4.19862752,104.17,104.14,13.99261916]
[1770102472298,12.83837571,104.17,104.14,4.3901731]
[1770102472800,16.38062137,104.17,104.14,4.3901731]
[1770102473197,16.38062137,104.17,104.13,13.99303363]
[1770102473198,4.19862752,104.16,104.13,13.99303363]
[1770102475919,16.38170444,104.16,104.13,4.3901731]
[1770102476121,4.19862752,104.15,104.12,30.97876322]
[1770102476314,4.19862752,104.13,104.1,4.3901731]
[1770102476616,4.19862752,104.14,104.11,13.99496732]
[1770102476805,43.04170444,104.16,104.13,4.3901731]
[1770102477223,12.83945878,104.16,104.13,4.3901731]
[1770102477398,12.83945878,104.16,104.13,13.99352155]
[1770102478900,12.83945878,104.16,104.13,4.3901731]
[1770102480123,16.38170444,104.16,104.13,4.3901731]
[1770102480701,16.38170444,104.16,104.13,13.99345958]
[1770102480702,4.19862752,104.16,104.13,13.99345958]
[1770102481705,12.83920634,104.16,104.13,13.99345958]
[1770102481911,12.83920634,104.16,104.13,4.3901731]
[1770102483540,4.19862752,104.16,104.13,13.99320577]
[1770102483721,4.19862752,104.17,104.14,4.3901731]
[1770102483909,38.67614403,104.19,104.15,4.3901731]
[1770102484309,4.19862752,104.18,104.15,4.3901731]
[1770102484719,4.19862752,104.18,104.14,4.3901731]
[1770102484720,4.19862752,104.17,104.14,4.3901731]
[1770102484912,4.19862752,104.16,104.13,4.3901731]
[1770102485112,7.74087318,104.17,104.14,4.3901731]
[1770102485631,12.83848964,104.17,104.14,4.3901731]
[1770102486021,12.83795438,104.18,104.15,4.3901731]
[1770102487030,4.19862752,104.17,104.14,13.99256528]
[1770102488634,4.19862752,104.16,104.13,13.99333974]
[1770102488839,4.19862752,104.16,104.13,9.60316664]
[1770102489046,12.83865678,104.17,104.14,4.3901731]
[1770102491931,12.83719998,104.19,104.16,4.3901731]
[1770102492937,4.19862752,104.2,104.17,4.3901731]
[1770102493124,39.495538,104.21,104.18,4.3901731]
[1770102493320,39.495538,104.21,104.17,4.3901731]
[1770102493321,7.74087318,104.2,104.17,4.3901731]
[1770102494230,4.19862752,104.2,104.17,4.3901731]
[1770102494435,12.83620077,104.2,104.17,4.3901731]
[1770102496234,12.83620077,104.2,104.17,7.93241876]
[1770102496639,4.19862752,104.21,104.18,7.93241876]
[1770102496828,4.19862752,104.22,104.19,7.93241876]
[1770102497140,12.83447733,104.22,104.19,4.3901731]
[1770102497948,16.37672299,104.22,104.19,4.3901731]
[1770102501146,12.83447733,104.22,104.19,4.3901731]
[1770102506536,12.83447733,104.22,104.19,13.9880153]
[1770102507147,39.53287643,104.23,104.2,4.10107607]
[1770102507946,12.87123108,104.25,104.22,4.10107607]
[1770102508139,12.87042691,104.26,104.23,4.10107607]
[1770102508461,51.78258822,104.27,104.24,4.10107607]
[1770102508462,39.52961272,104.27,104.24,4.10107607]
[1770102508756,4.23773791,104.26,104.23,4.10107607]
[1770102509660,12.87024309,104.26,104.23,4.10107607]